Cogmind - Beta 12 @@@ ROGUE MODE // 2023.04.08 @ 17:45:19 Player: wchar_t Result: Destroyed by P-80 Master with Gamma Rifle Performance ------------- Evolutions (7) 3500 Regions Visited (27) 5400 Robots Destroyed (410) 2050 Value Destroyed (18541) 18541 Prototype IDs (58) 1160 Alien Tech Used (2) 400 Bonus (4686) 4686 TOTAL SCORE: 35737 Bonus ------- High Alert Combat Kills 2727 Follower Combat Kills 2442 Entered Garrisons 200 Network Hubs Disabled 400 Aligned with FarCom 300 Met Data Miner 300 Met Imprinter 300 Destroyed Z-Imprinter 1000 Triggered Deep Caves Wall 500 Exposed GOLEM Chamber 500 Built Enhanced Grunts 300 A7 Reached Mainframe 300 Met R17 at Cetus 500 Friendly Fire -5083 Cogmind --------- Core Integrity 0/1300 Matter 5/300 Energy 86/100 System Corruption 23% Temperature Cool (6) Movement Walking (127) Location -3/Quarantine Parts ------- > --- POWER (3) -------- Assembled Flux Generator > --- PROPULSION (5) --- Myomer Leg Myomer Leg Myomer Leg Enhanced Biometal Leg Assembled Alloy Leg > --- UTILITY (11) ----- Assembled Nanovents Medium Storage Unit Assembled Biocell Array Machine Analyzer Enhanced Optical Array Experimental Signal Interpreter Graphene Brace Advanced Hacking Suite Improved System Shield GOLEM Unit > --- WEAPON (2) ------- Assembled Focal Cannon Lance > --- INVENTORY (10) --- Myomer Leg Myomer Leg Myomer Leg Advanced Sensor Array Long-range Terrain Scanner Phase Armor Nova Cannon Advanced Micro-nuke Launcher Peak State ------------ > --- POWER ------------ Light Antimatter Reactor Assembled Flux Generator > --- PROPULSION ------- Centrium Heavy Treads Myomer Leg Assembled Alloy Leg Assembled Alloy Leg > --- UTILITY ---------- Assembled Nanovents Assembled Nanovents High-capacity Storage Unit Assembled Biocell Array Advanced Sensor Array Advanced Signal Interpreter Centrium Medium Armor Plating Improved Hacking Suite Improved Hacking Suite GOLEM Unit > --- WEAPON ----------- Assembled Focal Cannon Assembled Focal Cannon > --- INVENTORY -------- Centrium Heavy Treads Flexi-carbon Leg Zionite Biocell Machine Analyzer Enhanced Optical Array Experimental Signal Interpreter Encrypted Comm Array Centrium Medium Armor Plating Centrium Medium Armor Plating Graphene Brace Experimental EM Disruption Field Advanced Shield Generator GOLEM Unit HERF Cannon Hardcell Cannon Long-range Missile Launcher [Rating: 170] Favorites ----------- Power Assembled Flux Generator Engine Reinforced Deuterium Engine Power Core Nuclear Core Reactor Assembled Flux Generator Propulsion Assembled Alloy Leg Treads Centrium Heavy Treads Leg Assembled Alloy Leg Wheel Wheel Utility High-capacity Storage Unit Device GOLEM Unit Storage High-capacity Storage Unit Processor Advanced Signal Interpreter Hackware Improved Hacking Suite Protection Hardened Medium Armor Plating Artifact Phase Armor Weapon Assembled Focal Cannon Energy Gun Spread Laser Energy Cannon Assembled Focal Cannon Ballistic Gun Light Assault Rifle Ballistic Cannon Bore Cannon Launcher Heavy Missile Launcher Piercing Weapon Lance Build | -11 -10 -10 -10 -9 -8 -8 -7 -7 -7 -7 -7 -7 -7 -6 -6 -6 -6 -6 -5 -5 -5 -5 -5 -5 -4 -3 -3 ------- Run | Jun Mat Min Exi Min Mat Gar Fac Was Fac Low Low Zio Dee Pro Fac Low Low Dat Pro Fac Ext Cet Arc Hub Fac Res Qua Slots Evolved 14 | . . . . . 4 . 2 . . . . . . . 2 . . . . 2 . . . . 2 2 . Power 2 | . . . . . . . . . . . . . . . 1 . . . . . . . . . 1 . . Propulsion 3 | . . . . . 2 . . . . . . . . . . . . . . . . . . . . 1 . Utility 9 | . . . . . 2 . 2 . . . . . . . 1 . . . . 2 . . . . 1 1 . Weapon . | . . . . . . . . . . . . . . . . . . . . . . . . . . . . Parts Attached 424 | 6 16 5 3 . 19 32 32 10 45 4 10 4 39 7 26 7 2 1 3 21 21 2 3 3 24 60 19 Power 17 | 1 2 . . . 1 2 1 1 . . 1 . . . . . . . . 2 . . . . 2 4 . Engine 6 | 1 2 . . . . . 1 1 . . 1 . . . . . . . . . . . . . . . . Core 3 | . . . . . 1 2 . . . . . . . . . . . . . . . . . . . . . Reactor 8 | . . . . . . . . . . . . . . . . . . . . 2 . . . . 2 4 . Propulsion 86 | 2 4 1 . . 8 7 8 1 9 2 . . 4 . 5 2 . . . 4 8 . . 1 5 10 5 Treads 7 | . . . . . 1 1 . . . . . . . . . . . . . . 2 . . . 1 2 . Leg 78 | 2 4 1 . . 7 6 8 1 8 2 . . 4 . 5 2 . . . 4 6 . . 1 4 8 5 Wheel 1 | . . . . . . . . . 1 . . . . . . . . . . . . . . . . . . Hover . | . . . . . . . . . . . . . . . . . . . . . . . . . . . . Flight . | . . . . . . . . . . . . . . . . . . . . . . . . . . . . Utility 187 | 1 4 2 1 . 5 4 7 5 22 1 3 4 16 2 11 . 1 . 1 14 13 2 3 2 15 42 6 Device 104 | . . 1 . . 3 1 5 3 12 1 2 2 4 . 3 . 1 . 1 7 10 . 1 1 12 30 4 Storage 10 | 1 3 . 1 . . . . 1 . . . . 1 . . . . . . . . . . . 2 . 1 Processor 13 | . 1 1 . . . 1 2 . . . . 1 . . 4 . . . . . . . . . . 3 . Hackware 7 | . . . . . 1 . . . . . . . . . . . . . . . 1 . 2 1 . 2 . Protection 52 | . . . . . 1 2 . 1 10 . 1 1 11 2 4 . . . . 7 2 2 . . 1 7 . Artifact 1 | . . . . . . . . . . . . . . . . . . . . . . . . . . . 1 Weapon 134 | 2 6 2 2 . 5 19 16 3 14 1 6 . 19 5 10 5 1 1 2 1 . . . . 2 4 8 Energy Gun 6 | 1 1 . . . . . 1 1 2 . . . . . . . . . . . . . . . . . . Energy Cannon 43 | . 1 1 1 . . 3 6 . 4 . 2 . 8 2 5 1 1 1 1 1 . . . . . 2 3 Ballistic Gun 6 | 1 2 . . . . 1 2 . . . . . . . . . . . . . . . . . . . . Ballistic Cannon 39 | . 2 . . . 3 9 5 2 4 . 2 . 6 1 1 1 . . . . . . . . 2 1 . Launcher 38 | . . 1 1 . 2 6 2 . 4 1 2 . 5 2 4 3 . . 1 . . . . . . 1 3 Special Weapon . | . . . . . . . . . . . . . . . . . . . . . . . . . . . . Impact Weapon . | . . . . . . . . . . . . . . . . . . . . . . . . . . . . Slashing Weapon . | . . . . . . . . . . . . . . . . . . . . . . . . . . . . Piercing Weapon 2 | . . . . . . . . . . . . . . . . . . . . . . . . . . . 2 Special Melee Weapon . | . . . . . . . . . . . . . . . . . . . . . . . . . . . . Unidentified Prototypes 19 | . . . . . 1 . . . 1 . . . 7 . . . . . . 1 . 1 . 1 1 2 4 Corrupted Parts 5 | . . . . . . . 1 . . . . . . . . 1 . . . 1 . . . 1 1 . . System Corruption 18 | . . . . . . . 3 . . . . . . . . 3 . . . 4 . . . 1 7 . . Parts Lost 117 | . 2 1 . . 3 9 11 . 7 . 3 . 8 3 14 3 . . . 17 5 . . 1 5 22 3 Power 12 | . 1 . . . 1 1 1 . . . 1 . . 1 1 . . . . 1 . . . . 1 3 . Propulsion 33 | . . . . . 2 3 4 . 3 . . . 4 . 4 1 . . . 5 . . . . 1 5 1 Utility 49 | . . 1 . . . 3 3 . 3 . 2 . 4 2 5 1 . . . 8 3 . . 1 2 9 2 Weapon 23 | . 1 . . . . 2 3 . 1 . . . . . 4 1 . . . 3 2 . . . 1 5 . Highest Loss Streak 12 | . 2 1 . . 3 4 10 . 2 . 1 . 2 1 12 2 . . . 3 2 . . 1 2 9 3 To Critical Strikes 2 | . . . . . . 1 . . . . . . . . . . . . . 1 . . . . . . . Average Slot Usage (%) 90 | . 97 95 100 100 92 93 94 88 96 97 97 98 94 77 84 85 80 75 80 86 87 86 87 88 87 82 74 Engine 3 | . 12 14 14 14 3 . 1 6 7 7 6 7 7 1 . . . . . . . . . . . . . Reactor 2 | . . . . . . . . . . . . . . . 5 5 6 6 6 4 4 5 5 5 10 8 2 Leg 25 | . 27 28 28 28 33 29 24 30 27 24 30 30 28 30 25 25 20 20 20 21 22 23 23 23 20 13 21 Device 12 | . . 6 . . 3 7 15 14 16 23 18 15 15 7 13 10 6 6 6 15 21 11 10 9 13 8 15 Storage 9 | . 14 14 14 14 9 9 7 5 7 7 7 7 7 7 11 8 13 13 12 11 11 11 11 11 10 8 4 Processor 9 | . 13 3 14 14 5 1 16 15 14 7 7 8 3 . 10 20 20 20 20 14 5 5 5 5 5 9 14 Hackware 2 | . . . . . 6 7 . . . . . . . . . . . . . . . 5 8 12 10 12 9 Protection 5 | . . . . . 6 9 3 . 6 7 9 12 15 14 2 . . . . 3 5 10 8 5 5 3 . Energy Cannon 7 | . 6 13 10 14 9 2 5 . 4 7 6 7 8 6 10 7 13 8 12 11 10 9 10 11 9 6 3 Ballistic Cannon 4 | . 6 14 14 14 8 14 6 4 6 7 6 7 4 4 1 2 . . . . . . . . . 1 . Naked Turns . | . . . . . . . . . . . . . . . . . . . . . . . . . . . . Heaviest Build 145 | 13 31 32 51 51 62 67 74 78 86 84 90 86 97 87 122 105 105 105 105 127 126 125 125 124 145 144 86 Greatest Support 108 | 20 20 20 20 20 60 60 53 58 66 70 70 70 81 81 104 96 96 76 76 108 96 96 96 104 105 85 105 Greatest Overweight (x) 4 | . 2 1 2 2 2 2 1 1 2 2 1 1 2 1 1 1 1 1 1 2 3 1 1 1 1 4 . Average Overweight (x) . | . . 1 1 2 1 1 1 . 1 1 . 1 . . . . 1 1 1 . 1 1 1 1 1 . . Largest Inventory Capacity 20 | 8 15 15 20 20 20 20 20 20 20 20 20 20 20 20 20 20 20 20 20 20 20 20 20 20 20 20 10 Average Capacity 19 | 6 11 15 18 20 20 20 20 16 20 20 20 20 20 20 20 20 20 20 20 20 20 20 20 20 19 19 7 Most Carried 20 | 6 15 15 18 18 20 20 20 20 20 20 20 20 20 20 20 20 20 20 20 20 20 20 20 20 20 20 10 Average Carried 18 | 2 9 14 16 17 17 18 18 13 19 19 19 17 18 18 19 20 20 20 20 19 19 19 19 20 19 17 6 Final Capacity 20 | 8 15 15 20 20 20 20 20 20 20 20 20 20 20 20 20 20 20 20 20 20 20 20 20 20 20 5 10 Final Carried 20 | 6 15 15 17 18 20 19 16 19 19 20 16 20 20 19 20 20 20 20 20 20 20 20 20 20 19 5 9 Class Distribution -------------------- 36% | Mutant 23% | Golem 12% | Scavenger-Mutant 7% | Scavenger-Golem 6% | Commander-Golem 5% | Hacker-Golem 3% | Hacker-Mutant Dominant Class ---------------- Mutant | -10/Materials Mutant | -10/Mines Mutant | -10/Exiles Mutant | -9/Mines Mutant | -8/Materials Mutant | -8/Garrison Scavenger-Skirmisher | -7/Factory Scavenger-Mutant | -7/Waste Mutant | -7/Factory Mutant | -7/Lower Caves Mutant | -7/Lower Caves Mutant | -7/Zion Scavenger-Mutant | -7/Deep Caves Golem | -6/Proximity Caves Golem | -6/Factory Golem | -6/Lower Caves Golem | -6/Lower Caves Golem | -6/Data Miner Golem | -5/Proximity Caves Golem | -5/Factory Commander-Golem | -5/Extension Commander-Golem | -5/Cetus Commander-Golem | -5/Archives Hacker-Golem | -5/Hub_04(d) Scavenger-Golem | -4/Factory Hacker-Golem | -3/Research Hacker-Mutant | -3/Quarantine Resources | -11 -10 -10 -10 -9 -8 -8 -7 -7 -7 -7 -7 -7 -7 -6 -6 -6 -6 -6 -5 -5 -5 -5 -5 -5 -4 -3 -3 ----------- Run | Jun Mat Min Exi Min Mat Gar Fac Was Fac Low Low Zio Dee Pro Fac Low Low Dat Pro Fac Ext Cet Arc Hub Fac Res Qua Matter Collected 10006 | 239 228 63 . 35 382 823 696 628 1433 109 395 108 818 299 691 215 49 . 83 296 529 92 63 41 268 1249 174 Remotely . | . . . . . . . . . . . . . . . . . . . . . . . . . . . . Salvage Created 17589 | . 541 115 . . 586 668 1145 261 1609 41 226 . 863 261 1765 368 61 . 121 1576 1491 50 224 223 1636 3311 447 Parts 841 | . 27 7 . . 40 42 53 4 80 2 9 . 30 14 75 14 2 . 12 78 59 2 16 12 78 160 25 Haulers Intercepted 7 | . 2 . . . 2 . . . 2 . . . . . 1 . . . . . . . . . . . . Recyclers Shooed 13 | . 1 . . . 4 . . . 5 . . . . . 1 . . . . . . . . . . 1 1 Parts Field Recycled . | . . . . . . . . . . . . . . . . . . . . . . . . . . . . Retrieved Matter . | . . . . . . . . . . . . . . . . . . . . . . . . . . . . Parts Self-Destructed 41 | . . . . . . . . . . . 3 . . 10 . 10 2 . 16 . . . . . . . . Prevented 4 | . . . . . . . . . . . . . . . . 4 . . . . . . . . . . . Kills | -11 -10 -10 -10 -9 -8 -8 -7 -7 -7 -7 -7 -7 -7 -6 -6 -6 -6 -6 -5 -5 -5 -5 -5 -5 -4 -3 -3 ------- Run | Jun Mat Min Exi Min Mat Gar Fac Was Fac Low Low Zio Dee Pro Fac Low Low Dat Pro Fac Ext Cet Arc Hub Fac Res Qua Combat Hostiles Destroyed 364 | . 10 5 . . 14 28 24 . 31 . 8 . 50 12 42 8 1 . 7 19 18 2 1 . 24 48 12 Guns 19 | . 10 . . . . 3 3 . 3 . . . . . . . . . . . . . . . . . . Cannons 216 | . . 2 . . 11 16 15 . 20 . 1 . 6 2 27 5 1 . 3 19 18 2 1 . 22 43 2 AOE 124 | . . 3 . . 3 9 5 . 8 . 7 . 42 10 15 3 . . 4 . . . . . 2 3 10 Classes Destroyed 24 | . 3 1 . . 5 3 2 2 . 1 1 . 4 1 . 1 . . . . . . . . . . . Worker 20 | . . . . . 1 . 2 . 3 . . . . . 2 . . . . 2 . . . 2 . 5 3 Builder 12 | . . . . . . . 3 . . . . . . . . . . . . 2 1 . . 1 . 4 1 Hauler 7 | . 2 . . . 2 . . . 2 . . . . . 1 . . . . . . . . . . . . Recycler 15 | . . . . . 1 . 3 . 3 . . . . . 1 . . . . 1 1 . . 1 . 2 2 Mechanic 1 | . . . . . . . . . 1 . . . . . . . . . . . . . . . . . . Operator 7 | . . . . . 1 . . . 1 . . . . . . . . . . . . . 4 . . 1 . Drone 1 | . . . . . . . . . . . . . . 1 . . . . . . . . . . . . . Watcher 19 | . 2 . . . 2 . 1 . 3 . . . . . 1 . . . . 4 2 . . 1 2 1 . Swarmer 52 | . . 3 . . 4 8 7 . 3 . . . . 6 . 4 . . 7 . . 2 . . . 3 5 Grunt 123 | . 10 2 . . 5 11 11 . 14 . 4 . . 3 19 4 1 . . 4 9 . . . 9 15 2 Brawler 4 | . . . . . . . 1 . . . . . . 1 . . . . . . . . . . . 2 . Duelist 8 | . . . . . 1 1 1 . 1 . . . . . 1 . . . . . 1 . . . 1 1 . Sentry 32 | . . . . . 4 4 1 . 5 . 1 . . . 1 . . . . 7 7 . 1 . . 1 . Demolisher 2 | . . . . . . . . . . . . . . . 2 . . . . . . . . . . . . Specialist 1 | . . . . . . 1 . . . . . . . . . . . . . . . . . . . . . Hunter 22 | . . . . . . 1 1 . 1 . . . . 1 2 . . . . 3 1 . . . 4 8 . Programmer 54 | . . . . . . 2 2 . 7 . . . . . 5 . . . . 5 . . . . 10 18 5 Enhanced Grunt 1 | . . . . . . . . . . . . . 1 . . . . . . . . . . . . . . Z-Light 5 | . . . . . . . . . . . . . 5 . . . . . . . . . . . . . . Samaritan 2 | . . . . . . . . . . 1 1 . . . . . . . . . . . . . . . . Tinkerer 1 | . . . . . . . . . . . . . . . . 1 . . . . . . . . . . . Master Thief 3 | . . . . . . . . . . . 3 . . . . . . . . . . . . . . . . Assembler 2 | . . . . . . . . . . . . . 2 . . . . . . . . . . . . . . Assembled 54 | . . . . . . . . . . . . . 42 . 12 . . . . . . . . . . . . Golem 2 | . . . . . . . . . . . . . 2 . . . . . . . . . . . . . . Surgeon 2 | . . . . . . . . 1 1 . . . . . . . . . . . . . . . . . . Wasp 2 | . . . . . . . . 2 . . . . . . . . . . . . . . . . . . . Thug 8 | . . . . . . . . 8 . . . . . . . . . . . . . . . . . . . Savage 2 | . . . . . . . . 2 . . . . . . . . . . . . . . . . . . . Martyr 2 | . . . . . . . . 2 . . . . . . . . . . . . . . . . . . . Best Kill Streak 37 | . 3 3 . . 5 11 5 . 6 . 4 . 37 3 8 4 1 . 5 4 4 1 2 4 6 10 6 Combat Bots Only 35 | . 3 3 . . 4 11 4 . 4 . 4 . 35 3 7 4 1 . 5 3 4 1 1 . 6 6 5 Max Kills in Single Turn 35 | . 1 3 . . 3 3 3 1 5 1 3 . 35 3 3 3 1 . 4 1 1 1 1 4 1 3 4 Gunslinging . | . . . . . . . . . . . . . . . . . . . . . . . . . . . . Exploded 34 | . . 3 . . 3 3 2 . 4 . 3 . 34 3 3 3 . . 4 . . . . . 1 3 4 Melee . | . . . . . . . . . . . . . . . . . . . . . . . . . . . . Uniques/NPCs Destroyed 1 | . . . . . . . . . . . . . 1 . . . . . . . . . . . . . . Z-Imprinter (-7/Deep Caves) Combat | -11 -10 -10 -10 -9 -8 -8 -7 -7 -7 -7 -7 -7 -7 -6 -6 -6 -6 -6 -5 -5 -5 -5 -5 -5 -4 -3 -3 -------- Run | Jun Mat Min Exi Min Mat Gar Fac Was Fac Low Low Zio Dee Pro Fac Low Low Dat Pro Fac Ext Cet Arc Hub Fac Res Qua Damage Taken 33766 | . 570 134 . . 824 1538 1406 30 2453 . 482 . 1599 995 3691 1505 59 . 133 3957 1822 241 63 598 2770 7469 1427 Core 4081 | . 188 10 . . 83 168 135 . 307 . 27 . 184 43 327 232 39 . 35 393 180 18 . 66 335 1006 305 Absorbed by Shields 1473 | . . . . . . 23 4 . 28 . . . . . . . . . . . 517 96 . 31 672 102 . Reduced by Siege Mode 245 | . . . . . . . . . . . . . . . . . . . . . . . . . . 245 . Redirected to Shielding 154 | . . . . . . . . . . . . . 154 . . . . . . . . . . . . . . Regen/Repaired (Parts) 1014 | . . . . . 113 . . 48 190 . . 206 . . . . . . . . . . . . 457 . . Core Remaining (%) 43 | 100 . . . 20 . 54 . . . . . . . . . . . . 25 . . . . 34 70 . . Volleys Fired 1288 | . 60 9 2 . 47 77 64 64 118 8 10 . 106 45 80 36 4 . 5 129 81 5 14 4 88 206 26 Largest 2 | . 2 2 2 . 2 2 2 2 2 2 2 . 2 2 2 2 2 . 2 2 2 2 2 2 2 2 1 Hottest 162 | . 95 95 65 . 95 133 162 113 137 122 122 . 162 122 138 110 110 . 110 115 50 50 50 50 57 113 113 Shots Fired 2075 | . 119 15 4 . 88 139 110 130 227 11 18 1 131 49 138 45 9 . 10 181 132 10 19 8 139 318 24 Gun 223 | . 111 . . . . 10 10 67 25 . . . . . . . . . . . . . . . . . . Cannon 1764 | . 8 14 2 . 80 115 96 63 195 11 13 1 123 39 128 43 9 . 9 181 132 10 19 8 139 315 11 Launcher 88 | . . 1 2 . 8 14 4 . 7 . 5 . 8 10 10 2 . . 1 . . . . . . 3 13 Special . | . . . . . . . . . . . . . . . . . . . . . . . . . . . . Kinetic 637 | . 59 7 2 . 39 114 63 63 118 3 6 . 30 31 10 9 . . . . . . . . 1 82 . Thermal 1306 | . 60 7 . . 41 11 34 67 102 8 7 1 67 8 118 34 9 . 9 181 132 10 19 8 138 224 11 Explosive 88 | . . 1 2 . 8 14 4 . 7 . 5 . 8 10 10 2 . . 1 . . . . . . 3 13 Electromagnetic 44 | . . . . . . . 9 . . . . . 26 . . . . . . . . . . . . 9 . Robot Hit Streak 28 | . 21 4 . . 11 10 15 15 23 6 8 . 9 4 10 9 4 . 5 20 21 2 8 1 18 28 6 Robot Miss Streak 12 | . 4 1 . . 3 4 4 5 9 4 8 . 7 12 2 2 1 . 1 4 2 2 1 1 3 4 3 Penetration Max 1 | . . . . . . . 1 1 1 . . . 1 . . . . . . . . . . . . . . Secondary Targets . | . . . . . . . . . . . . . . . . . . . . . . . . . . . . Autonomous 20 | . . . . . . 10 10 . . . . . . . . . . . . . . . . . . . . Shots Hit Robots 1248 | . 87 8 . . 54 75 69 124 124 6 11 . 26 10 84 23 5 . 7 100 97 5 15 1 96 210 11 Core Hits 934 | 1 34 6 . . 40 56 47 152 91 2 28 . 117 26 67 10 1 . 6 34 37 2 6 7 41 94 29 Critical Kills 19 | . . . . . . . 2 . 10 . . . 5 2 . . . . . . . . . . . . . Critical Parts Destroyed 21 | . . . . . . 2 . . 16 . . . 2 1 . . . . . . . . . . . . . Critical Strikes 66 | . 6 . . . 3 3 4 6 28 . . . 7 3 . . . . . . . . . . . 6 . Burn 6 | . 6 . . . . . . . . . . . . . . . . . . . . . . . . . . Meltdown 1 | . . . . . . . 1 . . . . . . . . . . . . . . . . . . . . Destroy 40 | . . . . . . 2 1 . 27 . . . 7 3 . . . . . . . . . . . . . Blast 19 | . . . . . 3 1 2 6 1 . . . . . . . . . . . . . . . . 6 . Melee Attacks 4 | . . . . . . . . . . . . . . . . . . . . . . . . . . . 4 Impact . | . . . . . . . . . . . . . . . . . . . . . . . . . . . . Slashing . | . . . . . . . . . . . . . . . . . . . . . . . . . . . . Piercing 4 | . . . . . . . . . . . . . . . . . . . . . . . . . . . 4 Sneak Attacks 1 | . . . . . . . . . . . . . . . . . . . . . . . . . . . 1 Combat Hostiles . | . . . . . . . . . . . . . . . . . . . . . . . . . . . . Follow-up Attacks . | . . . . . . . . . . . . . . . . . . . . . . . . . . . . Damage Inflicted 58896 | 9 1030 285 . . 1440 2364 2886 3044 4186 165 1464 . 3664 1112 5157 1145 165 . 699 5135 4476 267 707 542 4883 10897 3174 Guns 3125 | . 895 . . . . 225 363 1279 363 . . . . . . . . . . . . . . . . . . Cannons 39754 | . 53 131 . . 985 1276 1994 1765 2551 165 203 . 593 113 3343 904 165 . 288 5125 4415 267 707 34 4471 10049 157 Explosions 15639 | . . 154 . . 429 836 525 . 1215 . 1261 . 3071 999 1814 241 . . 411 . . . . 480 412 827 2964 Melee 53 | . . . . . . . . . . . . . . . . . . . . . . . . . . . 53 Ramming 325 | 9 82 . . . 26 27 4 . 57 . . . . . . . . . . 10 61 . . 28 . 21 . Kinetic 9799 | . 416 77 . . 423 1269 1372 1765 1568 . 97 . 213 113 168 . . . . . . . . . 43 2275 . Thermal 33227 | . 532 54 . . 562 232 754 1279 1502 165 106 . 138 . 3564 904 165 . 288 5125 4415 267 707 34 4739 7538 157 Explosive 14202 | . . 154 . . 429 836 525 . 1059 . 1261 . 3071 999 1425 241 . . 411 . . . . . . 827 2964 Electromagnetic 1290 | . . . . . . . 231 . . . . . 242 . . . . . . . . . . 480 101 236 . Impact . | . . . . . . . . . . . . . . . . . . . . . . . . . . . . Slashing . | . . . . . . . . . . . . . . . . . . . . . . . . . . . . Piercing 53 | . . . . . . . . . . . . . . . . . . . . . . . . . . . 53 Highest Corruption 26 | . . . . . . 3 20 15 17 4 4 4 . . 6 9 9 9 9 24 24 24 24 26 17 19 23 Average Corruption 11 | . . . . . . 2 10 15 12 4 4 4 . . 4 6 9 9 9 10 24 24 24 24 5 10 21 Corruption Purged 22 | . . . . . . . 5 . 17 . . . . . . . . . . . . . . . . . . Corruption Blocked 5 | . . . . . . . 5 . . . . . . . . . . . . . . . . . . . . Effects 885 | . . . . . . 27 19 50 142 13 19 2 . . 57 45 16 5 11 89 154 37 12 10 43 96 38 Message Errors 201 | . . . . . . 9 5 15 27 3 3 1 . . 13 9 2 2 . 24 33 8 5 2 10 21 9 Matter Fused 218 | . . . . . . 2 4 11 43 4 5 . . . 13 13 2 . 3 22 45 11 4 3 9 14 10 Heat Flow Errors 115 | . . . . . . 7 2 5 12 2 4 . . . 3 10 6 1 4 12 16 5 . . 9 13 4 Energy Discharges 95 | . . . . . . 2 3 8 14 3 1 . . . 12 3 2 1 1 9 22 4 . 1 1 6 2 Parts Rejected 5 | . . . . . . 1 . . 1 . . . . . . . . . . . . . . . . 2 1 Parts Fused 7 | . . . . . . 1 . . 1 . . . . . . 1 . . . 1 . 1 . 1 . 1 . Data Loss (minor) 112 | . . . . . . 3 3 2 21 . 6 . . . 9 3 2 1 3 8 21 5 . 1 5 12 7 Data Loss (major) 34 | . . . . . . 1 1 2 6 . . . . . 2 1 1 . . 6 6 . . 1 1 5 1 Misfires 35 | . . . . . . . . 4 7 1 . 1 . . 4 2 1 . . 3 5 1 . . 2 4 . Alerts 17 | . . . . . . 1 . 1 5 . . . . . 1 1 . . . . 1 . 2 . 2 2 1 Misdirections 6 | . . . . . . . . . . . . . . . . . . . . 1 . 1 . 1 . 2 1 Weapon Failures 40 | . . . . . . . 1 2 5 . . . . . . 2 . . . 3 5 1 1 . 4 14 2 Overload Shots . | . . . . . . . . . . . . . . . . . . . . . . . . . . . . Overflow Damage 2802 | . 2 . . . . 3 87 78 99 32 62 . 66 4 311 53 . . 31 449 162 . 76 55 367 787 78 Projectiles 2120 | . . . . . . 3 60 78 37 32 . . 18 . 236 5 . . 13 449 155 . 76 . 217 732 9 Explosions 673 | . . . . . . . 27 . 62 . 62 . 48 4 75 48 . . 18 . . . . 55 150 55 69 Melee 9 | . 2 . . . . . . . . . . . . . . . . . . . 7 . . . . . . Knockbacks 90 | . 3 1 . . 3 8 11 20 16 . . . 1 . 1 . . . . . . . . . . 26 . Impact 4 | . 2 . . . . . . . 1 . . . . . . . . . . . . . . . . 1 . Kinetic 75 | . 1 1 . . 3 7 10 16 14 . . . 1 . 1 . . . . . . . . . . 21 . Secondary 11 | . . . . . . 1 1 4 1 . . . . . . . . . . . . . . . . 4 . Self-Inflicted Damage 1692 | . . . . . 41 66 45 . 38 . 211 . 39 249 528 . . . 70 . . . . 96 179 73 57 Shots 50 | . . . . . 3 5 2 . 2 . 7 . 2 7 13 . . . 1 . . . . 1 3 2 2 Rammed 2 | . . . . . . . . . . . . . . . . . . . . . . . . . . 2 . Targets Rammed 46 | 1 16 . . . 7 2 1 . 6 . . . . . . . . . . 2 5 . . 2 . 4 . Kicked 44 | 1 16 . . . 7 2 1 . 6 . . . . . . . . . . 2 5 . . 2 . 2 . Crushed . | . . . . . . . . . . . . . . . . . . . . . . . . . . . . Highest Temperature 323 | . 314 246 3 . 252 195 195 173 232 150 266 13 294 126 261 312 256 134 252 243 213 208 . 1 278 323 205 Average Temperature 83 | . 84 98 2 . 76 56 91 54 58 54 71 8 88 38 79 112 94 77 116 75 91 94 . 1 95 95 119 Received Heat Transfer 5726 | . 303 81 . . 396 346 196 . 682 . 96 . 304 72 450 258 27 . . 522 462 26 . 96 235 1000 174 Effects 13 | . 1 1 . . . . . . 1 . . . 1 . 1 3 . . . 2 . . . . . 3 . Energy Bleed 6 | . 1 . . . . . . . . . . . 1 . 1 1 . . . . . . . . . 2 . Interference 6 | . . 1 . . . . . . 1 . . . . . . 2 . . . 2 . . . . . . . Damage (minor) 1 | . . . . . . . . . . . . . . . . . . . . . . . . . . 1 . Siege Activations 8 | . . . . . . . . . . . . . . . . . . . . . . . . . . 8 . Total Turns 195 | . . . . . . . . . . . . . . . . . . . . . . . . . . 195 . Longest Duration 42 | . . . . . . . . . . . . . . . . . . . . . . . . . . 42 . Robots Corrupted 4 | . . . . . . . . . . . . . 2 . . . . . . . . . . . . 2 . Combat Hostiles 4 | . . . . . . . . . . . . . 2 . . . . . . . . . . . . 2 . Parts Fried 4 | . . . . . . . . . . . . . . . . . . . . . . . . 2 . 2 . Impact Corruptions 2 | . 1 . . . . . . . . . . . . . . . . . . . 1 . . . . . . Robots Melted 1 | . . . . . . . 1 . . . . . . . . . . . . . . . . . . . . Combat Hostiles 1 | . . . . . . . 1 . . . . . . . . . . . . . . . . . . . . Parts Melted 31 | . 7 . . . . . 3 . 2 . . . . . 3 4 . . . 3 . . . . 5 4 . Heat Transferred 24689 | . 2035 111 . . 1184 374 1075 1617 2345 222 148 . 101 . 2376 781 161 . 162 2473 2462 137 375 25 2575 3875 75 Parts Sabotaged . | . . . . . . . . . . . . . . . . . . . . . . . . . . . . Parts Stolen 5 | . . . . . . . . . . 1 3 . . . . . 1 . . . . . . . . . . Parts Stripped . | . . . . . . . . . . . . . . . . . . . . . . . . . . . . Power Chain Reactions 1 | . . . . . . . . . . . . . . . . . . . . . . . . 1 . . . Missiles Intercepted . | . . . . . . . . . . . . . . . . . . . . . . . . . . . . Alert | -11 -10 -10 -10 -9 -8 -8 -7 -7 -7 -7 -7 -7 -7 -6 -6 -6 -6 -6 -5 -5 -5 -5 -5 -5 -4 -3 -3 ------- Run | Jun Mat Min Exi Min Mat Gar Fac Was Fac Low Low Zio Dee Pro Fac Low Low Dat Pro Fac Ext Cet Arc Hub Fac Res Qua Peak Influence 1363 | . 181 79 . . 294 1363 1080 368 816 . . . . . 920 . . . . 432 371 729 454 1019 492 1103 1102 Initial 920 | . . 11 . . . 186 715 323 14 . . . . . 920 . . . . 155 211 162 291 158 471 247 620 Average 364 | . 58 37 . . 150 734 888 187 313 . . . . . 581 . . . . 244 217 447 417 407 279 425 760 Maximum Alert Level 4 | . . . . . 1 4 3 1 3 . . . . . 3 . . . . 2 1 3 2 3 2 4 4 Low Security (%) 35 | 100 100 100 . 100 55 1 . 65 48 . . . . . . . . . . 20 41 9 . 14 33 39 . Level 1 26 | . . . . . 44 8 . 34 8 . . . . . 19 . . . . 73 58 31 15 63 37 17 . Level 2 19 | . . . . . . 38 2 . 31 . . . . . 50 . . . . 5 . 36 84 5 28 16 50 Level 3 16 | . . . . . . 36 97 . 12 . . . . . 29 . . . . . . 22 . 16 . 27 45 Level 4 1 | . . . . . . 15 . . . . . . . . . . . . . . . . . . . . 3 Level 5 . | . . . . . . . . . . . . . . . . . . . . . . . . . . . . High Security . | . . . . . . . . . . . . . . . . . . . . . . . . . . . . Max Security . | . . . . . . . . . . . . . . . . . . . . . . . . . . . . Squads Dispatched 73 | . 1 . . . 1 . 9 . 13 . . . . . 10 . . . . 9 2 . . 1 6 15 6 Investigation 11 | . . . . . 1 . 1 . 2 . . . . . 3 . . . . 1 1 . . 1 . 1 . Extermination 30 | . . . . . . . 2 . 7 . . . . . 4 . . . . 3 . . . . 4 7 3 Reinforcement 20 | . 1 . . . . . 4 . 3 . . . . . 3 . . . . 1 1 . . . 2 2 3 Assault 8 | . . . . . . . 2 . 1 . . . . . . . . . . 3 . . . . . 2 . Garrison 4 | . . . . . . . . . . . . . . . . . . . . 1 . . . . . 3 . Intercept . | . . . . . . . . . . . . . . . . . . . . . . . . . . . . Searches Triggered 3 | . . . . . . . . . . . . . . . 3 . . . . . . . . . . . . Data Miner Redirects 4 | . . . . . . . . . . . . . . . . . . . . 2 . . . . . 2 . Construction Impeded 6 | . . . . . . . 3 . . . . . . . . . . . . . 1 . . . 1 1 . Haulers Reinforced 5 | . . . . . . . 1 . 1 . . . . . 1 . . . . . . . . . . . 2 Active Scanning Responses . | . . . . . . . . . . . . . . . . . . . . . . . . . . . . Cargo Convoy Interrupts 1 | . . . . . . . 1 . . . . . . . . . . . . . . . . . . . . Stealth | -11 -10 -10 -10 -9 -8 -8 -7 -7 -7 -7 -7 -7 -7 -6 -6 -6 -6 -6 -5 -5 -5 -5 -5 -5 -4 -3 -3 --------- Run | Jun Mat Min Exi Min Mat Gar Fac Was Fac Low Low Zio Dee Pro Fac Low Low Dat Pro Fac Ext Cet Arc Hub Fac Res Qua Distress Signals 28 | . 5 . . . 3 . 3 . 4 . . . . 2 2 . . . . 2 . 2 . 1 . 3 1 Communications Jammed . | . . . . . . . . . . . . . . . . . . . . . . . . . . . . Distress Signals . | . . . . . . . . . . . . . . . . . . . . . . . . . . . . Times Spotted 592 | . 24 5 . . 21 29 33 6 56 2 9 . 57 20 56 12 2 . 8 30 32 20 9 19 29 81 32 Peak Tracking Total 37 | . 5 3 . . 5 6 5 3 4 1 4 . 37 4 7 4 1 . 5 4 5 5 2 12 6 10 11 Tactical Retreats 34 | . 2 . . . 2 3 2 . 3 . . . 4 2 1 2 . . . 4 1 . . . . 7 1 Traps | -11 -10 -10 -10 -9 -8 -8 -7 -7 -7 -7 -7 -7 -7 -6 -6 -6 -6 -6 -5 -5 -5 -5 -5 -5 -4 -3 -3 ------- Run | Jun Mat Min Exi Min Mat Gar Fac Was Fac Low Low Zio Dee Pro Fac Low Low Dat Pro Fac Ext Cet Arc Hub Fac Res Qua Traps Triggered 23 | . 4 . . . . . 1 . 5 . . . . . 4 . . . . 1 6 . . . 1 1 . Indirectly 1 | . . . . . . . . . . . . . . . . . . . . . . . . . 1 . . Trap Hack Attempts . | . . . . . . . . . . . . . . . . . . . . . . . . . . . . Triggered . | . . . . . . . . . . . . . . . . . . . . . . . . . . . . Disarmed . | . . . . . . . . . . . . . . . . . . . . . . . . . . . . Reprogrammed . | . . . . . . . . . . . . . . . . . . . . . . . . . . . . Reused . | . . . . . . . . . . . . . . . . . . . . . . . . . . . . Traps Extracted . | . . . . . . . . . . . . . . . . . . . . . . . . . . . . Installed . | . . . . . . . . . . . . . . . . . . . . . . . . . . . . Triggered 2 | . . . . . . . 2 . . . . . . . . . . . . . . . . . . . . Machines | -11 -10 -10 -10 -9 -8 -8 -7 -7 -7 -7 -7 -7 -7 -6 -6 -6 -6 -6 -5 -5 -5 -5 -5 -5 -4 -3 -3 ---------- Run | Jun Mat Min Exi Min Mat Gar Fac Was Fac Low Low Zio Dee Pro Fac Low Low Dat Pro Fac Ext Cet Arc Hub Fac Res Qua Machines Disabled 85 | . 1 . 2 . 4 3 1 . 13 . . . 4 . 13 1 . . . 6 1 1 1 15 10 4 5 Max in Single Turn 14 | . 1 . 1 . 1 1 1 . 5 . . . 1 . 3 1 . . . 3 1 1 . 14 6 1 2 Garrison Access 4 | . . . . . . . 1 . . . . . . . . . . . . 1 . . . . 1 1 . Network Hub 2 | . . . . . . . . . . . . . . . . . . . . . . . . 2 . . . Machines Repaired 1 | . . . . . . . . . . . . . . . . . . . . . . . . 1 . . . Machines Sabotaged . | . . . . . . . . . . . . . . . . . . . . . . . . . . . . Overloaded Fab Kills . | . . . . . . . . . . . . . . . . . . . . . . . . . . . . Hacking | -11 -10 -10 -10 -9 -8 -8 -7 -7 -7 -7 -7 -7 -7 -6 -6 -6 -6 -6 -5 -5 -5 -5 -5 -5 -4 -3 -3 --------- Run | Jun Mat Min Exi Min Mat Gar Fac Was Fac Low Low Zio Dee Pro Fac Low Low Dat Pro Fac Ext Cet Arc Hub Fac Res Qua Machines Accessed 53 | . 3 . 1 1 6 1 2 . 9 . . 1 . . 5 . . 3 . 5 3 1 . 2 6 4 . Terminals 32 | . 3 . . . 4 1 . . 4 . . . . . 4 . . . . 4 3 1 . 2 3 3 . Fabricators 4 | . . . . . . . 1 . 2 . . . . . . . . . . . . . . . 1 . . Repair Stations 3 | . . . . . 1 . . . 1 . . . . . . . . . . . . . . . 1 . . Recycling Units . | . . . . . . . . . . . . . . . . . . . . . . . . . . . . Scanalyzers 1 | . . . . . . . . . . . . . . . 1 . . . . . . . . . . . . Garrison Access 7 | . . . . . 1 . 1 . 2 . . . . . . . . . . 1 . . . . 1 1 . Total Hacks 151 | . 6 . 1 1 15 2 4 . 15 . . 5 . . 12 . . 27 . 12 7 4 . 3 22 15 . Successful 77 | . 2 . 1 1 10 1 1 . 4 . . 5 . . 3 . . 27 . 2 . 1 . 2 13 4 . Failed 74 | . 4 . . . 5 1 3 . 11 . . . . . 9 . . . . 10 7 3 . 1 9 11 . Catastrophic 19 | . 2 . . . . . 1 . 4 . . . . . 4 . . . . 3 2 . . . 1 2 . Database Lockouts . | . . . . . . . . . . . . . . . . . . . . . . . . . . . . Manual 51 | . 3 . 1 . 6 . . . 3 . . 7 . . 4 . . . . 2 4 1 . 2 14 4 . Terminals 84 | . 6 . . . 10 2 . . 5 . . . . . 7 . . . . 11 7 4 . 3 15 14 . Fabricators 8 | . . . . . . . 2 . 4 . . . . . . . . . . . . . . . 2 . . Repair Stations 9 | . . . . . 4 . . . 2 . . . . . . . . . . . . . . . 3 . . Recycling Units . | . . . . . . . . . . . . . . . . . . . . . . . . . . . . Scanalyzers 5 | . . . . . . . . . . . . . . . 5 . . . . . . . . . . . . Garrison Access 11 | . . . . . 1 . 2 . 4 . . . . . . . . . . 1 . . . . 2 1 . Terminal Hacks 55 | . 2 . 1 1 3 1 . . 1 . . 5 . . . . . 27 . 2 . 1 . 1 7 3 . Record 7 | . . . . . . . . . . . . . . . . . . 6 . . . . . . . 1 . Part Schematic 17 | . . . . . . . . . . . . 5 . . . . . 12 . . . . . . . . . Robot Schematic 6 | . . . . . . . . . . . . . . . . . . 6 . . . . . . . . . Prototype ID Bank 3 | . . . . . . . . . . . . . . . . . . 3 . . . . . . . . . Open Door 2 | . . . . 1 . . . . . . . . . . . . . . . . . 1 . . . . . Branch Access Points 3 | . 1 . . . . . . . 1 . . . . . . . . . . . . . . . 1 . . Terminal Index 1 | . . . . . . . . . . . . . . . . . . . . . . . . 1 . . . Alert Level 4 | . 1 . . . . . . . . . . . . . . . . . . 1 . . . . 1 1 . Unreport Threat 5 | . . . . . . . . . . . . . . . . . . . . 1 . . . . 3 1 . Hauler Manifests 1 | . . . . . . . . . . . . . . . . . . . . . . . . . 1 . . Registered Components 1 | . . . . . . . . . . . . . . . . . . . . . . . . . 1 . . Zone Layout 3 | . . . . . 3 . . . . . . . . . . . . . . . . . . . . . . Garrison Registry 1 | . . . . . . 1 . . . . . . . . . . . . . . . . . . . . . EX-Prototype ID Bank 1 | . . . 1 . . . . . . . . . . . . . . . . . . . . . . . . Fabricator Hacks 1 | . . . . . . . . . 1 . . . . . . . . . . . . . . . . . . Network Status 1 | . . . . . . . . . 1 . . . . . . . . . . . . . . . . . . Repair Station Hacks 7 | . . . . . 3 . . . 2 . . . . . . . . . . . . . . . 2 . . Scan Component 4 | . . . . . 2 . . . 1 . . . . . . . . . . . . . . . 1 . . Repair 3 | . . . . . 1 . . . 1 . . . . . . . . . . . . . . . 1 . . Recycling Unit Hacks . | . . . . . . . . . . . . . . . . . . . . . . . . . . . . Scanalyzer 3 | . . . . . . . . . . . . . . . 3 . . . . . . . . . . . . Insert Component 2 | . . . . . . . . . . . . . . . 2 . . . . . . . . . . . . Analyze 1 | . . . . . . . . . . . . . . . 1 . . . . . . . . . . . . Garrison Access Hacks 4 | . . . . . 1 . 1 . . . . . . . . . . . . . . . . . 1 1 . Unlock Access 1 | . . . . . 1 . . . . . . . . . . . . . . . . . . . . . . Seal Access 3 | . . . . . . . 1 . . . . . . . . . . . . . . . . . 1 1 . Unauthorized Hacks 7 | . . . . . 3 . . . . . . . . . . . . . . . . . . 1 3 . . Terminals 6 | . . . . . 3 . . . . . . . . . . . . . . . . . . 1 2 . . Assimilate 3 | . . . . . 2 . . . . . . . . . . . . . . . . . . . 1 . . Botnet 2 | . . . . . 1 . . . . . . . . . . . . . . . . . . . 1 . . Sabotage 1 | . . . . . . . . . . . . . . . . . . . . . . . . 1 . . . Fabricators 1 | . . . . . . . . . . . . . . . . . . . . . . . . . 1 . . Liberate 1 | . . . . . . . . . . . . . . . . . . . . . . . . . 1 . . Repair Stations . | . . . . . . . . . . . . . . . . . . . . . . . . . . . . Recycling Units . | . . . . . . . . . . . . . . . . . . . . . . . . . . . . Scanalyzers . | . . . . . . . . . . . . . . . . . . . . . . . . . . . . Garrison Access . | . . . . . . . . . . . . . . . . . . . . . . . . . . . . Data Cores Recovered . | . . . . . . . . . . . . . . . . . . . . . . . . . . . . Used . | . . . . . . . . . . . . . . . . . . . . . . . . . . . . Hacking Detections 38 | . 2 . . . 2 1 2 . 8 . . . . . 5 . . . . 5 3 1 . 2 4 3 . Full Trace Events 7 | . . . . . 1 . 1 . 2 . . . . . 2 . . . . . 1 . . . . . . Feedback Events 1 | . . . . . . . . . . . . . . . 1 . . . . . . . . . . . . Corruption 1 | . . . . . . . . . . . . . . . 1 . . . . . . . . . . . . Feedback Blocked . | . . . . . . . . . . . . . . . . . . . . . . . . . . . . Robot Schematics Acquired 6 | . . . . . . . . . . . . . . . . . . 6 . . . . . . . . . Robots Built . | . . . . . . . . . . . . . . . . . . . . . . . . . . . . Authchips . | . . . . . . . . . . . . . . . . . . . . . . . . . . . . Time . | . . . . . . . . . . . . . . . . . . . . . . . . . . . . Total Robot Build Rating . | . . . . . . . . . . . . . . . . . . . . . . . . . . . . Part Schematics Acquired 18 | . . . . . . . . . . . . 5 . . 1 . . 12 . . . . . . . . . Parts Built . | . . . . . . . . . . . . . . . . . . . . . . . . . . . . Authchips . | . . . . . . . . . . . . . . . . . . . . . . . . . . . . Time . | . . . . . . . . . . . . . . . . . . . . . . . . . . . . Total Part Build Rating . | . . . . . . . . . . . . . . . . . . . . . . . . . . . . Parts Repaired 3 | . . . . . 1 . . . 1 . . . . . . . . . . . . . . . 1 . . Time 72 | . . . . . 26 . . . 38 . . . . . . . . . . . . . . . 8 . . Parts Recycled . | . . . . . . . . . . . . . . . . . . . . . . . . . . . . Recycled Matter . | . . . . . . . . . . . . . . . . . . . . . . . . . . . . Retrieved Matter . | . . . . . . . . . . . . . . . . . . . . . . . . . . . . Retrieved Components . | . . . . . . . . . . . . . . . . . . . . . . . . . . . . Parts Scanalyzed 2 | . . . . . . . . . . . . . . . 2 . . . . . . . . . . . . Part Schematics Acquired 1 | . . . . . . . . . . . . . . . 1 . . . . . . . . . . . . Parts Damaged . | . . . . . . . . . . . . . . . . . . . . . . . . . . . . Bothacking | -11 -10 -10 -10 -9 -8 -8 -7 -7 -7 -7 -7 -7 -7 -6 -6 -6 -6 -6 -5 -5 -5 -5 -5 -5 -4 -3 -3 ------------ Run | Jun Mat Min Exi Min Mat Gar Fac Was Fac Low Low Zio Dee Pro Fac Low Low Dat Pro Fac Ext Cet Arc Hub Fac Res Qua Used RIF Installer . | . . . . . . . . . . . . . . . . . . . . . . . . . . . . Robots Hacked . | . . . . . . . . . . . . . . . . . . . . . . . . . . . . Non-combat . | . . . . . . . . . . . . . . . . . . . . . . . . . . . . Combat . | . . . . . . . . . . . . . . . . . . . . . . . . . . . . Robot Hacks Applied . | . . . . . . . . . . . . . . . . . . . . . . . . . . . . Relay Couplers Released 6 | . . . . . . . . . . . . . . . . . . . . 2 . . . . . 4 . Machine Destruction 2 | . . . . . . . . . . . . . . . . . . . . 2 . . . . . . . Programmers 4 | . . . . . . . . . . . . . . . . . . . . . . . . . . 4 . Fabnet Peak Effective % . | . . . . . . . . . . . . . . . . . . . . . . . . . . . . Robots Rewired 8 | . . . . . . . . . . . . . . . . . . . . . 8 . . . . . . Allies Hacked . | . . . . . . . . . . . . . . . . . . . . . . . . . . . . Hacks Repelled . | . . . . . . . . . . . . . . . . . . . . . . . . . . . . Allies | -11 -10 -10 -10 -9 -8 -8 -7 -7 -7 -7 -7 -7 -7 -6 -6 -6 -6 -6 -5 -5 -5 -5 -5 -5 -4 -3 -3 -------- Run | Jun Mat Min Exi Min Mat Gar Fac Was Fac Low Low Zio Dee Pro Fac Low Low Dat Pro Fac Ext Cet Arc Hub Fac Res Qua Total Allies 58 | . . . . . 1 . . 20 3 . . 2 . . . . . . 1 . 22 5 . . 4 . . Largest Group 20 | . . . . . 1 . . 20 3 . . 2 2 . . . . . 1 1 20 19 11 7 3 . . Highest-Rated Group 929 | . . . . . 10 . . 496 93 . . 192 192 . . . . . 96 96 656 929 752 455 141 . . Highest-Rated Ally 159 | . . . . . 10 . . 35 31 . . 96 96 . . . . . 96 96 159 156 156 96 47 . . Warlord Squad Rendezvous 1 | . . . . . . . . . . . . . . . . . . . . . . . . . 1 . . Muscle 1 | . . . . . . . . . . . . . . . . . . . . . . . . . 1 . . Total Orders 15 | . . . . . . . . . . . . . 1 . . . . . . . 2 5 2 1 4 . . STAY 6 | . . . . . . . . . . . . . . . . . . . . . 1 1 1 1 2 . . FOLLOW 8 | . . . . . . . . . . . . . . . . . . . . . 1 4 1 . 2 . . RETURN 1 | . . . . . . . . . . . . . 1 . . . . . . . . . . . . . . Ally Attacks 456 | . . . . . . . . 109 19 . . . 42 . . . . . 5 19 48 115 39 44 16 . . Total Damage 14209 | . . . . . . . . 3377 220 . . . 1922 . . . . . 136 554 1562 3052 1347 1674 365 . . Kills 77 | . . . . . . . . 10 2 . . . 10 . . . . . 3 4 10 24 3 9 2 . . Allies Corrupted 4 | . . . . . . . . . . . . . . . . . . . . . . . . 3 1 . . Allies Melted . | . . . . . . . . . . . . . . . . . . . . . . . . . . . . Intel | -11 -10 -10 -10 -9 -8 -8 -7 -7 -7 -7 -7 -7 -7 -6 -6 -6 -6 -6 -5 -5 -5 -5 -5 -5 -4 -3 -3 ------- Run | Jun Mat Min Exi Min Mat Gar Fac Was Fac Low Low Zio Dee Pro Fac Low Low Dat Pro Fac Ext Cet Arc Hub Fac Res Qua Robot Analysis Total . | . . . . . . . . . . . . . . . . . . . . . . . . . . . . Derelict Logs Recovered 7 | . . 1 . 1 . . . . . 1 . 1 . 1 . . 1 . 1 . . . . . . . . Drone Launches 6 | . . . . . . . . . . . . . 6 . . . . . . . . . . . . . . Drone Recoveries 5 | . . . . . . . . . . . . . 5 . . . . . . . . . . . . . . Decoded 0b10 Intel 126 | . . . . . . . . . . . . . . . 74 . . . . 52 . . . . . . . Traps 11 | . . . . . . . . . . . . . . . 8 . . . . 3 . . . . . . . Emergency Access 12 | . . . . . . . . . . . . . . . 7 . . . . 5 . . . . . . . Items 88 | . . . . . . . . . . . . . . . 53 . . . . 35 . . . . . . . Machines 8 | . . . . . . . . . . . . . . . 2 . . . . 6 . . . . . . . Patrols 4 | . . . . . . . . . . . . . . . 3 . . . . 1 . . . . . . . Guards 3 | . . . . . . . . . . . . . . . 1 . . . . 2 . . . . . . . Exploration | -11 -10 -10 -10 -9 -8 -8 -7 -7 -7 -7 -7 -7 -7 -6 -6 -6 -6 -6 -5 -5 -5 -5 -5 -5 -4 -3 -3 ------------- Run | Jun Mat Min Exi Min Mat Gar Fac Was Fac Low Low Zio Dee Pro Fac Low Low Dat Pro Fac Ext Cet Arc Hub Fac Res Qua Turns Passed 42683 | 65 1421 1224 646 380 1559 2475 1200 1157 4715 720 793 2267 3384 1552 3037 1526 482 244 268 3323 3116 695 218 186 1894 3334 802 Spaces Moved 18092 | 44 794 352 273 139 549 1084 460 675 2016 330 337 1148 1566 500 1371 562 243 104 131 1151 1253 345 88 89 732 1375 381 Core 667 | 5 . . . . . . . 339 . . . . . . . . . . . . . . . . . 263 60 Treads 73 | . . . . . . 15 . . . . . . . . . . . . . . . . . . 1 57 . Legs 17352 | 39 794 352 273 139 549 1069 460 336 2016 330 337 1148 1566 500 1371 562 243 104 131 1151 1253 345 88 89 731 1055 321 Wheels . | . . . . . . . . . . . . . . . . . . . . . . . . . . . . Hover . | . . . . . . . . . . . . . . . . . . . . . . . . . . . . Flight . | . . . . . . . . . . . . . . . . . . . . . . . . . . . . Fastest Speed 50 | 50 120 190 190 260 190 186 186 50 190 193 125 195 125 127 127 137 183 183 183 135 135 185 185 185 183 50 50 Average Speed 183 | 112 147 190 230 260 201 190 186 134 195 209 194 195 190 175 189 186 183 183 183 180 185 185 185 185 185 164 114 Slowest Speed 330 | 120 260 190 260 260 260 320 190 190 260 260 195 195 295 204 206 187 185 183 183 210 330 185 185 185 240 260 127 Overloaded Moves . | . . . . . . . . . . . . . . . . . . . . . . . . . . . . Propulsion Burnouts . | . . . . . . . . . . . . . . . . . . . . . . . . . . . . Robots Hopped . | . . . . . . . . . . . . . . . . . . . . . . . . . . . . Cave-ins Triggered 5 | . . . . . . . . . 1 . . . . . . 1 . . . 3 . . . . . . . Teleports 1 | . . . . . . . . . . . . . . . . . . . . . . . . . . . 1 Exploration Rate (%) 55 | 4 97 82 60 39 55 69 14 94 45 55 53 86 87 58 35 55 50 75 34 35 69 77 79 18 25 36 63 Regions Visited 27 Branch Regions 17 Pre-discovered Areas 5 | . . 1 . . . . . . . 1 . 2 . . . . . 1 . . . . . . . . . Known Exits Taken 19 | . 1 . . . 1 . . . 1 1 1 1 . 1 1 1 1 1 1 1 1 1 1 1 1 1 . Unknown Exits Taken 5 | 1 . 1 1 1 . . . . . . . . 1 . . . . . . . . . . . . . . Scrap Searched 15 | . . . . 1 . . . . . 3 2 4 . . . . 2 . 3 . . . . . . . . Spaces Dug 113 | . . . . . . 6 . . 5 . . . 15 16 7 2 . . . 16 2 . . 3 7 29 5 Terrain Destroyed 1582 | . . 9 13 . 48 48 34 4 143 4 122 . 88 149 190 44 4 . 27 100 30 3 3 176 73 122 148 Melee 2 | . . . . . . . . . . . . . . . . . . . . . . . . . . . 2 Projectile 414 | . . . . . . 5 20 4 41 4 7 . 37 24 37 14 4 . 2 66 30 3 3 3 29 75 6 AOE 1166 | . . 9 13 . 48 43 14 . 102 . 115 . 51 125 153 30 . . 25 34 . . . 173 44 47 140 Terrain Rammed . | . . . . . . . . . . . . . . . . . . . . . . . . . . . . Walls Destroyed . | . . . . . . . . . . . . . . . . . . . . . . . . . . . . Machines Disabled . | . . . . . . . . . . . . . . . . . . . . . . . . . . . . Actions | -11 -10 -10 -10 -9 -8 -8 -7 -7 -7 -7 -7 -7 -7 -6 -6 -6 -6 -6 -5 -5 -5 -5 -5 -5 -4 -3 -3 --------- Run | Jun Mat Min Exi Min Mat Gar Fac Was Fac Low Low Zio Dee Pro Fac Low Low Dat Pro Fac Ext Cet Arc Hub Fac Res Qua Total 25581 | 56 929 892 287 159 907 1367 697 811 2565 349 449 1177 1833 1120 1680 997 272 159 149 2218 1910 403 123 98 1138 2124 712 Wait 5130 | . 14 525 7 20 256 146 126 7 342 4 91 17 80 565 165 388 22 53 8 889 433 30 16 . 253 411 262 Move 18065 | 43 793 351 272 138 549 1081 460 674 2015 329 336 1147 1565 499 1370 560 242 103 130 1149 1252 344 87 89 731 1375 381 Hop . | . . . . . . . . . . . . . . . . . . . . . . . . . . . . Pick Up 207 | 6 16 . 2 1 13 13 7 28 11 3 1 3 16 1 15 1 . . . 9 5 8 1 . 17 20 10 Fast Attach 130 | 6 7 1 . . 7 7 3 5 22 1 1 4 8 . 13 2 1 1 1 9 4 2 1 2 3 11 8 Attach 96 | . 2 1 . . 5 12 13 3 4 1 4 1 8 2 5 . . . . 3 3 . . . 6 17 6 Detach 93 | . . 1 . . 4 4 2 5 2 . 1 4 1 1 11 1 1 1 2 11 4 3 2 . 11 16 5 Swap 200 | . 7 3 3 . 7 13 16 2 19 2 5 . 23 5 8 5 1 . 2 9 14 . 2 1 15 32 6 Drop 218 | . 14 1 1 . 12 12 5 23 26 1 . 1 24 2 13 2 1 1 1 7 8 11 . 1 14 33 4 Fire 1288 | . 60 9 2 . 47 77 64 64 118 8 10 . 106 45 80 36 4 . 5 129 81 5 14 4 88 206 26 Melee 4 | . . . . . . . . . . . . . . . . . . . . . . . . . . . 4 Ram 1 | . . . . . . . . . . . . . . . . . . . . . . . . . . 1 . Kick 43 | 1 16 . . . 7 2 1 . 6 . . . . . . . . . . 2 5 . . 1 . 2 . Crush . | . . . . . . . . . . . . . . . . . . . . . . . . . . . . Escape Stasis 37 | . . . . . . . . . . . . . . . . 1 . . . 1 35 . . . . . . Rewire 69 | . . . . . . . . . . . . . 2 . . 1 . . . . 66 . . . . . . Trap . | . . . . . . . . . . . . . . . . . . . . . . . . . . . . Miscellaneous . | . . . . . . . . . . . . . . . . . . . . . . . . . . . . Route ------- -11/Junkyard -10/Materials (discovered 5 exits: [*Mat x3] / *Min x2) -10/Mines -10/Exiles -9/Mines -8/Materials (discovered 2 exits: *Fac / Gar) -8/Garrison (discovered 3 exits: *Fac x3) -7/Factory (discovered 2 exits: *Fac / Low) -7/Waste -7/Factory (discovered 3 exits: *Fac / *Low x2) -7/Lower Caves -7/Lower Caves -7/Zion (discovered 2 exits: *Dee / [*Pro]) -7/Deep Caves -6/Proximity Caves -6/Factory (discovered 3 exits: *Fac / *Low x2) -6/Lower Caves -6/Lower Caves (discovered 2 exits: *Fac / *Dat) -6/Data Miner -5/Proximity Caves -5/Factory (discovered 3 exits: *Fac x2 / *Ext) -5/Extension (discovered 3 exits: *Fac x2 / *Cet) -5/Cetus (discovered 2 exits: *Fac / *Arc) -5/Archives (discovered 2 exits: *Fac / *Hub) -5/Hub_04(d) -4/Factory (discovered 3 exits: *Res / Upp x2) -3/Research (discovered 2 exits: [*Res] / *Qua) -3/Quarantine History --------- Turn | Location | Event 2 | -11/Junkyard | Discovered new exit (range 16) 66 | -11/Junkyard | Entered Materials 125 | -10/Materials | Identified exit to Mines 310 | -10/Materials | Build established: Mutant 426 | -10/Materials | Discovered new exit (range 16) 567 | -10/Materials | Core integrity fell below 50% 706 | -10/Materials | Discovered new exit (range 13) 976 | -10/Materials | Discovered new exit (range 4) 1487 | -10/Materials | Entered Mines 1653 | -10/Mines | Assembled infested the area 2327 | -10/Mines | Learned location of Zion (-7) 2703 | -10/Mines | Discovered new exit (range 5) 2711 | -10/Mines | Entered Exiles 2757 | -10/Exiles | Met 8R-AWN 2791 | -10/Exiles | Met EX-HEX 2841 | -10/Exiles | Met EX-BIN 2865 | -10/Exiles | Aligned with FarCom system 2867 | -10/Exiles | Given EX-Vault access code 2913 | -10/Exiles | Opened EX-Vault 2935 | -10/Exiles | Found AWS/Gauss 2939 | -10/Exiles | Found Trap Reconfigurator 2992 | -10/Exiles | Warned to stay clear of 0b10 Research branches 3075 | -10/Exiles | Met EX-DEC 3176 | -10/Exiles | Discovered new exit (range 10) 3357 | -10/Exiles | Stole two prototypes: Trap Reconfigurator, AWS/Gauss 3357 | -10/Exiles | Entered Mines 3420 | -9/Mines | Met a Derelict bent on vengeance 3586 | -9/Mines | Found the Drone Emporium 3598 | -9/Mines | Found Prototype Device 3722 | -9/Mines | Discovered new exit (range 6) 3737 | -9/Mines | Entered Materials 3737 | -8/Materials | Evolved 4 slots: Propulsion x2, Utility x2 3737 | -8/Materials | Identified Thief Drone Bay 4373 | -8/Materials | Lost 3 parts (1p2n) 5193 | -8/Materials | Repaired Lgt. Cannon 5255 | -8/Materials | Discovered new exit (range 16) 5296 | -8/Materials | Identified exit to Garrison 5296 | -8/Materials | Entered Garrison 5528 | -8/Garrison | Triggered checkpoint 5531 | -8/Garrison | Triggered checkpoint 5539 | -8/Garrison | Triggered checkpoint 5578 | -8/Garrison | Destroyed 11 combat bots 5583 | -8/Garrison | Lost 4 parts (1n1u2w) 5745 | -8/Garrison | Discovered new exit (range 10) 5790 | -8/Garrison | Discovered new exit (range 56) 5790 | -8/Garrison | Discovered new exit (range 15) 5790 | -8/Garrison | Discovered new exit (range 87) 6376 | -8/Garrison | Triggered checkpoint 6781 | -8/Garrison | Lost 3 parts (1p2u) 6834 | -8/Garrison | Triggered checkpoint 7382 | -8/Garrison | Attempted to access garrison exit controls, blocked by remote lockdown 7478 | -8/Garrison | Triggered checkpoint 7616 | -8/Garrison | Attempted to access garrison exit controls, blocked by remote lockdown 7771 | -8/Garrison | Entered Factory 7771 | -7/Factory | Evolved 2 slots: Utility x2 7772 | -7/Factory | Identified exit to Lower Caves 7773 | -7/Factory | FarCom data flow suspended 8096 | -7/Factory | Discovered new exit (range 19) 8571 | -7/Factory | First assault squad dispatched 8677 | -7/Factory | Cargo convoy interrupted 8717 | -7/Factory | System corruption reached 10% 8784 | -7/Factory | Lost 10 parts (1p4n2u3w) 8971 | -7/Factory | Sucked down chute 8971 | -7/Factory | Entered Waste 8972 | -7/Waste | Met a frightened Derelict 9021 | -7/Waste | Spotted C-40 Crusher 9022 | -7/Waste | Spotted C-40 Crusher 9023 | -7/Waste | Spotted C-40 Crusher 9027 | -7/Waste | Build established: Scavenger-Mutant 9028 | -7/Waste | Warlord forces began an assault 9034 | -7/Waste | Allies destroyed C-40 Crusher 9069 | -7/Waste | Spotted C-40 Crusher 9074 | -7/Waste | Spotted C-40 Crusher 9081 | -7/Waste | Allies destroyed C-40 Crusher 9109 | -7/Waste | Spotted C-40 Crusher 9115 | -7/Waste | Allies destroyed C-40 Crusher 9143 | -7/Waste | Discovered new exit (range 15) 9529 | -7/Waste | Identified exit to Factory 10128 | -7/Waste | Entered Factory 10128 | -7/Factory | Accompanied by 1 ally 10660 | -7/Factory | Found Prototype Launcher 10660 | -7/Factory | Identified Rocket Array 10697 | -7/Factory | Found Rocket Array 10747 | -7/Factory | Allied Derelicts emerged from ambush trap array 11530 | -7/Factory | Repaired Hrd. Medium Armor Plating 12607 | -7/Factory | Build established: Mutant 13626 | -7/Factory | Core integrity fell below 50% 14128 | -7/Factory | First assault squad dispatched 14277 | -7/Factory | Crushed by falling debris 14395 | -7/Factory | Discovered new exit (range 16) 14504 | -7/Factory | Identified exit to Factory 14843 | -7/Factory | Entered Lower Caves 14843 | -7/Lower Caves | Spotted 2C-052(f) 14844 | -7/Lower Caves | Encountered a Master Thief 14844 | -7/Lower Caves | AWS/Gauss stolen by Master Thief 14853 | -7/Lower Caves | Met a Warlord Commander 14854 | -7/Lower Caves | Learned location of Warlord (-5) 14859 | -7/Lower Caves | Found Encrypted Comm Array 15261 | -7/Lower Caves | Learned Factory terminal intel 15546 | -7/Lower Caves | Discovered new exit (range 8) 15558 | -7/Lower Caves | Identified exit to Lower Caves 15563 | -7/Lower Caves | Entered another Lower Caves area 16073 | -7/Lower Caves | Attracted the attention of an 0b10 checkpoint 16280 | -7/Lower Caves | Spotted CC-ZZZ(f) 16281 | -7/Lower Caves | Encountered a Master Thief 16282 | -7/Lower Caves | Spotted ZU-KUZ(f) 16282 | -7/Lower Caves | Spotted BH-B2D(f) 16282 | -7/Lower Caves | Spotted 3F-PBX(f) 16283 | -7/Lower Caves | Encountered a Master Thief 16283 | -7/Lower Caves | Encountered a Master Thief 16283 | -7/Lower Caves | Mass Driver stolen by Master Thief 16284 | -7/Lower Caves | Encountered a Master Thief 16285 | -7/Lower Caves | Imp. Coolant Injector stolen by Master Thief 16286 | -7/Lower Caves | Destroyed ZU-KUZ(f) 16286 | -7/Lower Caves | Destroyed BH-B2D(f) 16288 | -7/Lower Caves | Thief Drone Bay stolen by Master Thief 16289 | -7/Lower Caves | Destroyed 3F-PBX(f) 16305 | -7/Lower Caves | Discovered new exit (range 13) 16327 | -7/Lower Caves | Identified exit to Zion 16356 | -7/Lower Caves | Entered Zion 16473 | -7/Zion | System corruption cleaned by Quarantine Array 16528 | -7/Zion | Acquired unknown access codes intercepted by a Zionite 16614 | -7/Zion | Given A8's code to call for help 16624 | -7/Zion | Discovered new exit (range 8) 16754 | -7/Zion | Learned location of Quarantine (-3) 17346 | -7/Zion | Enhanced Grunt warped into view, answering call for help 17346 | -7/Zion | Enhanced Grunt warped into view, answering call for help 17785 | -7/Zion | Identified exit to Deep Caves 18174 | -7/Zion | Opened final containment barrier to the Deep Caves 18209 | -7/Zion | Saw the warning signs outside the Deep Caves entrance 18316 | -7/Zion | Found Unknown Hackware 18316 | -7/Zion | Identified Relay Coupler [Programmer] 18623 | -7/Zion | Entered Deep Caves 18623 | -7/Deep Caves | Accompanied by 2 allies 19172 | -7/Deep Caves | Z-Facility disabled 19197 | -7/Deep Caves | Attacked by Z-Imprinter 19221 | -7/Deep Caves | Destroyed Z-Imprinter 19280 | -7/Deep Caves | Found Prototype Protection 19280 | -7/Deep Caves | Identified Zio. Weapon Casing 19576 | -7/Deep Caves | Build established: Scavenger-Mutant 20024 | -7/Deep Caves | Discovered new exit (range 7) 20275 | -7/Deep Caves | Found Prototype Protection 20291 | -7/Deep Caves | Found Prototype Protection 20775 | -7/Deep Caves | Spotted as-79943 20828 | -7/Deep Caves | Destroyed as-79943 21012 | -7/Deep Caves | Spotted as-56350 21119 | -7/Deep Caves | Build established: Mutant 21296 | -7/Deep Caves | Core integrity fell below 20% 21338 | -7/Deep Caves | Destroyed as-56350 21631 | -7/Deep Caves | Triggered Deep Caves wall 21631 | -7/Deep Caves | Spotted AS-62545 21632 | -7/Deep Caves | Destroyed AS-62545 21637 | -7/Deep Caves | Spotted AS-60263 21641 | -7/Deep Caves | Destroyed AS-60263 21662 | -7/Deep Caves | Destroyed 35 combat bots 21663 | -7/Deep Caves | Exposed GOLEM chamber 21667 | -7/Deep Caves | Found GOLEM Unit 21675 | -7/Deep Caves | Found GOLEM Unit 21680 | -7/Deep Caves | Found GOLEM Unit 21687 | -7/Deep Caves | Found GOLEM Unit 21721 | -7/Deep Caves | Identified Zio. Heavy Carapace (x2) 21855 | -7/Deep Caves | Found Prototype Device 21855 | -7/Deep Caves | Identified Exp. Thermal Shield 21955 | -7/Deep Caves | Build established: Golem 22007 | -7/Deep Caves | Entered Proximity Caves 22123 | -6/Proximity Caves | Spotter reported a threat 22323 | -6/Proximity Caves | Spotter reported a threat 22539 | -6/Proximity Caves | Spotter reported a threat 22638 | -6/Proximity Caves | Spotter reported a threat 22874 | -6/Proximity Caves | Learned Factory garrison access intel 22878 | -6/Proximity Caves | Spotter reported a threat 22968 | -6/Proximity Caves | Spotter reported a threat 23021 | -6/Proximity Caves | Spotter reported a threat 23229 | -6/Proximity Caves | Build established: Derelict-Golem 23280 | -6/Proximity Caves | Spotter reported a threat 23333 | -6/Proximity Caves | Spotter reported a threat 23401 | -6/Proximity Caves | Discovered exit to Factory (range 6) 23559 | -6/Proximity Caves | Entered Factory 23559 | -6/Factory | Evolved 2 slots: Power x1, Utility x1 23560 | -6/Factory | Loaded intel: 26 terminal locations 23561 | -6/Factory | Loaded intel: 4 garrison access locations 23703 | -6/Factory | Build established: Golem 23909 | -6/Factory | Search patrols dispatched 24189 | -6/Factory | Assembled infested ambush trap array 24199 | -6/Factory | Discovered new exit (range 8) 24259 | -6/Factory | Search patrols dispatched 24453 | -6/Factory | Lost 12 parts (1p3n4u4w) 24464 | -6/Factory | Destroyed 7 combat bots 24609 | -6/Factory | Search patrols dispatched 25506 | -6/Factory | Discovered new exit (range 15) 25543 | -6/Factory | Identified exit to Lower Caves 26330 | -6/Factory | Destroyed 7 combat bots 26367 | -6/Factory | Discovered new exit (range 19) 26596 | -6/Factory | Entered Lower Caves 26935 | -6/Lower Caves | Crushed by falling debris 27272 | -6/Lower Caves | Spotted B-75 Beast 27632 | -6/Lower Caves | Encountered a Warlord checkpoint 27764 | -6/Lower Caves | Core integrity fell below 50% 28100 | -6/Lower Caves | Discovered new exit (range 12) 28119 | -6/Lower Caves | Identified exit to Lower Caves 28122 | -6/Lower Caves | Entered another Lower Caves area 28195 | -6/Lower Caves | Discovered new exit (range 8) 28501 | -6/Lower Caves | Learned location of 1 exit from Proximity Caves 28567 | -6/Lower Caves | Discovered new exit (range 20) 28602 | -6/Lower Caves | Identified exit to Data Miner 28604 | -6/Lower Caves | Entered Data Miner 28605 | -6/Data Miner | Discovered new exit (range 6) 28633 | -6/Data Miner | Met Data Miner 28692 | -6/Data Miner | Learned location of Section 7 (-2) 28692 | -6/Data Miner | Acquired the access code to Warlord's prototype stash 28710 | -6/Data Miner | Received God Mode back door access code from Data Miner 28786 | -6/Data Miner | Identified exit to Proximity Caves 28848 | -6/Data Miner | Entered Proximity Caves 28849 | -5/Proximity Caves | Identified exit to Factory 28991 | -5/Proximity Caves | Learned 8 Factory zone layouts 29045 | -5/Proximity Caves | Escorted by Enhanced Grunt 29116 | -5/Proximity Caves | Entered Factory 29116 | -5/Factory | Accompanied by 1 ally 29116 | -5/Factory | Evolved 2 slots: Utility x2 29244 | -5/Factory | Discovered new exit (range 6) 29256 | -5/Factory | Identified exit to Factory 29414 | -5/Factory | Incoming assault squad redirected 29641 | -5/Factory | Garrison activated, responded to threat 29710 | -5/Factory | Lost 3 parts (2u1w) 29789 | -5/Factory | Crushed by falling debris 30538 | -5/Factory | Build established: Scavenger-Golem 30821 | -5/Factory | System corruption reached 10% 30908 | -5/Factory | Spotted B-75 Beast 31285 | -5/Factory | Incoming investigation squad redirected 31532 | -5/Factory | Discovered exit to Factory (range 15) 31920 | -5/Factory | Discovered new exit (range 10) 31935 | -5/Factory | Identified exit to Extension 32116 | -5/Factory | Crushed by falling debris 32175 | -5/Factory | Build established: Golem 32250 | -5/Factory | Crushed by falling debris 32288 | -5/Factory | Lost 3 parts (1n2u) 32416 | -5/Factory | First assault squad dispatched 32439 | -5/Factory | Entered Extension 33063 | -5/Extension | Core integrity fell below 50% 33093 | -5/Extension | Rescued a captive Derelict 33094 | -5/Extension | Rescued a captive Derelict 33548 | -5/Extension | Rescued A7 33557 | -5/Extension | Spotted B-75 Beast 33567 | -5/Extension | Spotted B-75 Beast 33579 | -5/Extension | Allies destroyed B-75 Beast 33603 | -5/Extension | Allies destroyed B-75 Beast 33674 | -5/Extension | Discovered exit to Factory (range 3) 34080 | -5/Extension | Rescued a captive Derelict 34080 | -5/Extension | Rescued a captive Derelict 34103 | -5/Extension | Rescued a captive Derelict 34117 | -5/Extension | Rescued a captive Derelict 34117 | -5/Extension | Rescued a captive Derelict 34221 | -5/Extension | Build established: Commander-Golem 34733 | -5/Extension | Rescued a captive Derelict 34734 | -5/Extension | Rescued a captive Derelict 34778 | -5/Extension | Rescued a captive Derelict 34826 | -5/Extension | Rescued a captive Derelict 34832 | -5/Extension | Rescued a captive Derelict 34840 | -5/Extension | Rescued a captive Derelict 35231 | -5/Extension | Discovered exit to Factory (range 10) 35232 | -5/Extension | Discovered new exit (range 6) 35261 | -5/Extension | Identified exit to Cetus 35262 | -5/Extension | Disrupted transfer network 35555 | -5/Extension | Entered Cetus 35555 | -5/Cetus | Accompanied by 19 allies (A7) 35560 | -5/Cetus | Acquired a Cetus Manufacturing Module code from A7 35601 | -5/Cetus | Spotted Cetus Guard 35601 | -5/Cetus | Spotted Cetus Guard 35603 | -5/Cetus | Spotted Cetus Guard 35603 | -5/Cetus | Spotted Cetus Guard 35614 | -5/Cetus | Allies destroyed Cetus Guard 35616 | -5/Cetus | Allies destroyed Cetus Guard 35618 | -5/Cetus | Allies destroyed Cetus Guard 35622 | -5/Cetus | Allies destroyed Cetus Guard 35680 | -5/Cetus | Escorted A7 to Cetus Mainframe 35705 | -5/Cetus | Started Cetus Manufacturing Module 35730 | -5/Cetus | Manufactured an Enhanced Grunt 35755 | -5/Cetus | Manufactured an Enhanced Grunt 35780 | -5/Cetus | Manufactured an Enhanced Grunt 35805 | -5/Cetus | Manufactured an Enhanced Grunt 35815 | -5/Cetus | Discovered new exit (range 15) 35830 | -5/Cetus | Manufactured an Enhanced Grunt 35861 | -5/Cetus | Spotted Cetus Guard 35862 | -5/Cetus | Spotted Cetus Guard 35864 | -5/Cetus | Spotted Cetus Guard 35866 | -5/Cetus | Spotted Cetus Guard 35877 | -5/Cetus | Discovered exit to Factory (range 16) 35883 | -5/Cetus | Allies destroyed Cetus Guard 35884 | -5/Cetus | Allies destroyed Cetus Guard 35889 | -5/Cetus | Allies destroyed Cetus Guard 35893 | -5/Cetus | Allies destroyed Cetus Guard 35895 | -5/Cetus | Met Revision 17 36244 | -5/Cetus | Identified exit to Archives 36250 | -5/Cetus | Entered Archives 36250 | -5/Archives | Accompanied by 11 allies (A7) 36255 | -5/Archives | Received a hacking code to weaken MAIN.C 36360 | -5/Archives | Discovered exit to Factory (range 16) 36436 | -5/Archives | Discovered new exit (range 14) 36458 | -5/Archives | Identified exit to Hub_04(d) 36468 | -5/Archives | Entered Hub_04(d) 36468 | -5/Hub_04(d) | Accompanied by 7 allies 36578 | -5/Hub_04(d) | Discovered exit to Factory (range 9) 36613 | -5/Hub_04(d) | Network Hub disabled 36623 | -5/Hub_04(d) | Network Hub disabled 36626 | -5/Hub_04(d) | Spotted Lightning 36630 | -5/Hub_04(d) | Spotted Lightning 36630 | -5/Hub_04(d) | Spotted Lightning 36634 | -5/Hub_04(d) | Allies destroyed Lightning 36637 | -5/Hub_04(d) | Found Prototype Device 36637 | -5/Hub_04(d) | Identified Exp. EM Disruption Field 36648 | -5/Hub_04(d) | Spotted Lightning 36650 | -5/Hub_04(d) | Spotted Lightning 36650 | -5/Hub_04(d) | Spotted Lightning 36651 | -5/Hub_04(d) | Spotted Lightning 36652 | -5/Hub_04(d) | Spotted Lightning 36654 | -5/Hub_04(d) | Entered Factory 36654 | -4/Factory | Evolved 2 slots: Power x1, Utility x1 37372 | -4/Factory | Build established: Hacker-Golem 37655 | -4/Factory | Joined by Warlord Muscle squad 37723 | -4/Factory | Identified exit to Upper Caves 37882 | -4/Factory | Found Prototype Processor 37960 | -4/Factory | Build established: Scavenger-Golem 38046 | -4/Factory | Repaired Hcp. Storage Unit 38141 | -4/Factory | System corruption reached 10% 38249 | -4/Factory | Discovered new exit (range 16) 38317 | -4/Factory | Identified exit to Research 38548 | -4/Factory | Entered Research 38548 | -3/Research | Evolved 2 slots: Propulsion x1, Utility x1 38614 | -3/Research | Spotted B-86 Titan 38681 | -3/Research | Spotted B-86 Titan 39602 | -3/Research | Build established: Hacker-Golem 40367 | -3/Research | Garrison activated, responded to threat 40409 | -3/Research | System corruption reached 10% 40464 | -3/Research | Incoming investigation squad redirected 40567 | -3/Research | Lost 9 parts (1p2n3u3w) 40672 | -3/Research | Identified Exp. Signal Interpreter 41298 | -3/Research | First assault squad dispatched 41680 | -3/Research | Lost 3 parts (1p1n1u) 41724 | -3/Research | Discovered new exit (range 22) 41734 | -3/Research | Incoming assault squad redirected 41846 | -3/Research | Core integrity fell below 50% 41872 | -3/Research | Discovered new exit (range 20) 41881 | -3/Research | Identified exit to Quarantine 41882 | -3/Research | Entered Quarantine 41890 | -3/Quarantine | Found Prototype Launcher 41891 | -3/Quarantine | Core integrity fell below 20% 41897 | -3/Quarantine | Found Alien Artifact 41919 | -3/Quarantine | Lost 3 parts (1n2u) 41920 | -3/Quarantine | Identified Transdimensional Reconstructor 41920 | -3/Quarantine | Warped through subspace 42144 | -3/Quarantine | Identified Adv. Micro-nuke Launcher 42226 | -3/Quarantine | Build established: Hacker-Mutant 42230 | -3/Quarantine | Found Alien Artifact 42230 | -3/Quarantine | Identified Phase Armor 42684 | -3/Quarantine | Destroyed by P-80 Master with Gamma Rifle Last Messages --------------- 42623_ The unstable cave ceiling collapses. 42625_ K-01 Serf collects debris. 42626_ W-44 Eye sends out distress signal. 42628_ K-01 Serf collects debris. 42629_ Energy Filter destroyed. 42630_ GOLEM Unit beginning Asb. Nanovents integration. 42631_ Asb. Nanovents integration complete. 42631_ System corrupted: IFF burst signal emitted. 42632_ ALERT: Rogue bot located, Programmers report to Quarantine Zone 5A. 42632_ K-01 Serf collects debris. 42636_ >> Machine Analyzer network decryption results: 42636_ Terminal x1 42636_ U-05 Engineer lays Concrete. 42637_ K-01 Serf collects debris. 42637_ U-05 Engineer lays Concrete. 42638_ The unstable cave ceiling collapses. 42646_ System corrupted: Heat flow error (+249). 42670_ System corrupted: Matter fused (-8). 42680_ Asb. Biocell Array destroyed. 42681_ GOLEM Unit beginning Asb. Biocell Array integration. Map ----- +----------------------------------------------------+ | | | | | | | ?????????????????????????????????????????????????? | | ?????????????????????????????????????????????????? | | ?????????????????????????????????????????????????? | | ?????????????????????????????????????????????????? | | ?????????????????????????????????????????????????? | | ?????????????????????????????????????????????????? | | ?????????????????????????????????????????????????? | | ?????????????????????????????????????????????????? | | ?????????????????????????????????????????????????? | | ?????????????????????????????????????????????????? | | ?????????????????????????????????????????????????? | | ?????????????????????????????????????????????????? | | ???????????????????????########??????????????????? | | ???????????????????????# #??????????????????? | | ???????????????????????# * ########???????????? | | ???????????????????????# # """ =#???????????? | | ???????????????????????# # """ #???????????? | | ????????????????????????? !# """ #???????????? | | ??????????????????????????? # #???????????? | | ????????????????############# # ! #???????????? | | ????????????????# / / ! #???????????? | | ???"""""""??????# p### ####+#####?????????? | | ???"""""""??????# """"" @#?# # #?????????? | | ???"""""""??????# """"" #?# # """"" #?????????? | | ????????????????# """"" *#?# # """"" =#?????????? | | ???"""?"""??????# #?# # """"" ###???????? | | ???"""T"""???? ?#! ""T"" #?# # ""#???????? | | ?????????????? # """"" #?# # """"" ""#???????? | | ????#?????????? ###+######### # """"" T"#???????? | | ????# ???????? # """"" ""#???????? | | ????# ????????? ^! # ""#???????? | | ????? ????????? !^ + """"" ###???????? | | ????? ????????? !! # """"" *#?????????? | | ??####/###????????# # """"" #?????????? | | ?? ????????# # ####??????? | | " " " T???###### """"""" # """"" "" #??????? | | " "" "" ?## """""" # """"" """#??????? | | " "" "" ?#"" " """""" """"" S"#??????? | | " "" "" ?#""" # ####??????? | | " " " ?#""! # ! #?????????? | | " "" "" ?# ###############?????????? | | " "" "" ## # #???????????????????????? | | " "" "" ! # #???????????????????????? | | " " " = % = ##???????????????????????? | | #???????????????????????? | | ######### % ##???????????????????????? | | ### #% ?????????????????????????? | +----------------------------------------------------+ Best States ------------- Heat Dissipation 76 Coolant Potential 80 Energy Generation 65 Energy Capacity 1350 Matter Stores 300 Matter Capacity 300 Sight Range 22 Robot Scan Range 16 Terrain Scan Density 135 EM Shielding 2 Armor Coverage 1425 Resistance: KI 15 Resistance: TH 15 Resistance: EX 25 Resistance: EM 75 Resistance: I 15 Resistance: S 15 Resistance: P 15 Weapon Shielding 100 Melee Speed Boost 20 Evasion (%) 55 Targeting Accuracy 8 Recoil Reduction 2 Energy Filtering 30 Particle Charging 25 Offensive Hacking 26 Defensive Hacking 12 Item Schematics ----------------- Riot Gun | -7/Zion | Free Hvy. Riot Gun | -7/Zion | Free Barrage Gun | -7/Zion | Free Battle Cannon | -7/Zion | Free Flamer | -7/Zion | Free Cold Fusion Reactor | -6/Factory | Scanalyzed Combat Drone Bay | -6/Data Miner | Free Lgt. Regenerative Plating | -6/Data Miner | Free Enh. Flexi-carbon Leg | -6/Data Miner | Free Prc. Matter Filter | -6/Data Miner | Free Hvy. Proton Cannon | -6/Data Miner | Free Hvy. Siege Treads | -6/Data Miner | Free Lrn. Sensor Array | -6/Data Miner | Free Adv. Concussive RPG | -6/Data Miner | Free Railgun | -6/Data Miner | Free Adv. Transmission Jammer | -6/Data Miner | Free Particle Reactor | -6/Data Miner | Free Adv. Component Analysis Suite | -6/Data Miner | Free Robot Schematics ------------------ S-27 Virus | -6/Data Miner | Free X-62 Marksman | -6/Data Miner | Free A-15 Conveyor | -6/Data Miner | Free B-60 Warrior | -6/Data Miner | Free H-66 Slayer | -6/Data Miner | Free A-27 Freighter | -6/Data Miner | Free Fabricated ------------ Nothing Alien Tech Used ----------------- Transdimensional Reconstructor Phase Armor Achievements -------------- Decoder Ring Help From High Places Challenges ------------ None Game ------ Seed AutogunEtherialAmplifier Manual? 0 Play Time 04:34:00 Cumulative 235.4 hours Start 2023.04.08 @ 10:26:08 End 2023.04.08 @ 17:45:19 Sessions 3 Manual Loads 0 Difficulty Rogue Special Mode None Game No. 98 Rogue 82 Adventurer 8 Explorer 8 Win Type - Total 17 Types 10/1/3/1/1/1/0/0/0 Lore% 86 Gallery% 81 Achievement% 74 Wizard Run 0 Options --------- ASCII 1 Keyboard 1 Movement Vi Keybinds 0 Fullscreen 1 Font 18/CogWide Map View 76x50 Tactical HUD 1 Map Filters NONE Filters NONE Steam 0 RUN: 9ca247d4-9c2f-4a3b-89c9-a58f525956c7